Cogmind - Beta 13 *** ADVENTURER MODE // 2024.04.11 @ 18:41:01 Player: IcedTea Result: Self-destructed Performance ------------- Evolutions (1) 500 Regions Visited (2) 400 Robots Destroyed (41) 205 Value Destroyed (1015) 1015 Prototype IDs (3) 60 Alien Tech Used (0) 0 Bonus (120) 120 TOTAL SCORE: 2300 Bonus ------- High Alert Combat Kills 120 Cogmind --------- Core Integrity 73/400 Matter 151/300 Energy 100/100 System Corruption 4% Temperature Cool (0) Movement Walking (120) Location -9/Materials Parts ------- > --- POWER (1) -------- (None) > --- PROPULSION (4) --- Aluminum Leg > --- UTILITY (2) ------ Small Storage Unit Signal Interpreter > --- WEAPON (2) ------- Rocket Launcher > --- INVENTORY (8) ---- Ion Engine Aluminum Leg Aluminum Leg Improved Heat Sink Large Matter Pod (9) Light Armor Plating Mini Grenade Launcher Peak State ------------ > --- POWER ------------ Light Ion Engine > --- PROPULSION ------- Aluminum Leg Aluminum Leg Aluminum Leg Aluminum Leg > --- UTILITY ---------- Small Storage Unit Signal Interpreter > --- WEAPON ----------- Improved EM Shotgun Rocket Launcher > --- INVENTORY -------- Ion Engine Aluminum Leg Aluminum Leg Improved Heat Sink Large Matter Pod Light Armor Plating Mini Grenade Launcher [Rating: 13] Favorites ----------- Power Light Ion Engine Engine Light Ion Engine Propulsion Aluminum Leg Leg Aluminum Leg Utility Small Storage Unit Device Improved Heat Sink Storage Small Storage Unit Processor Signal Interpreter Weapon Assault Rifle Energy Gun EM Pulse Gun Ballistic Gun Assault Rifle Launcher Grenade Launcher Build | -11 -10 -9 ------- Run | Yrd Mat Mat Slots Evolved 2 | . . 2 Power . | . . . Propulsion 2 | . . 2 Utility . | . . . Weapon . | . . . Parts Attached 24 | 6 6 12 Power 2 | 1 . 1 Engine 2 | 1 . 1 Core . | . . . Reactor . | . . . Propulsion 6 | 2 . 4 Treads . | . . . Leg 6 | 2 . 4 Wheel . | . . . Hover . | . . . Flight . | . . . Utility 3 | 1 2 . Device 1 | . 1 . Storage 1 | 1 . . Processor 1 | . 1 . Hackware . | . . . Protection . | . . . Artifact . | . . . Weapon 13 | 2 4 7 Energy Gun 5 | 1 2 2 Energy Cannon . | . . . Ballistic Gun 2 | 1 . 1 Ballistic Cannon . | . . . Launcher 6 | . 2 4 Special Weapon . | . . . Impact Weapon . | . . . Slashing Weapon . | . . . Piercing Weapon . | . . . Special Melee Weapon . | . . . Unidentified Prototypes 1 | . . 1 Parts Lost 8 | . . 8 Power 2 | . . 2 Propulsion 3 | . . 3 Utility . | . . . Weapon 3 | . . 3 Highest Loss Streak 5 | . . 5 To Critical Strikes . | . . . Average Slot Usage (%) 96 | . 92 98 Engine 11 | . 14 10 Leg 38 | . 28 43 Storage 11 | . 14 11 Processor 9 | . 5 11 Energy Gun 7 | . 11 4 Ballistic Gun 10 | . 14 8 Launcher 6 | . 1 8 Naked Turns . | . . . Heaviest Build 16 | 14 16 15 Greatest Support 40 | 20 20 40 Greatest Overweight (x) 1 | 1 . . Average Overweight (x) . | . . . Largest Inventory Capacity 8 | 8 8 8 Average Capacity 7 | 7 8 8 Most Carried 8 | 7 8 8 Average Carried 6 | 2 5 7 Final Capacity 8 | 8 8 8 Final Carried 8 | 2 8 7 Class Distribution -------------------- 100% | Mutant Dominant Class ---------------- Mutant | -10/Materials Mutant | -9/Materials Resources | -11 -10 -9 ----------- Run | Yrd Mat Mat Matter Collected 686 | 245 161 280 Remotely . | . . . Salvage Created 939 | 44 254 641 Parts 82 | 6 22 54 Haulers Intercepted 1 | . . 1 Recyclers Shooed 1 | . 1 . Parts Field Recycled . | . . . Retrieved Matter . | . . . Parts Self-Destructed . | . . . Prevented . | . . . Kills | -11 -10 -9 ------- Run | Yrd Mat Mat Combat Hostiles Destroyed 26 | . 6 20 Guns 7 | . 1 6 AOE 19 | . 5 14 Classes Destroyed 11 | 1 5 5 Worker 2 | . . 2 Builder 2 | . 1 1 Tunneler 2 | 2 . . Hauler 1 | . . 1 Recycler 3 | . 2 1 Operator 1 | . . 1 Watcher 4 | . 1 3 Swarmer 7 | . 3 4 Grunt 14 | . 3 11 Duelist 1 | . . 1 Sentry 4 | . . 4 Best Kill Streak 8 | 2 8 6 Combat Bots Only 5 | . 5 5 Max Kills in Single Turn 2 | 1 2 2 Gunslinging . | . . . Exploded 2 | . 2 2 Melee . | . . . Uniques/NPCs Destroyed . | . . . Combat | -11 -10 -9 -------- Run | Yrd Mat Mat Hostile Shots Fired 86 | . 14 72 Missed 26 | . 3 23 Damage Taken 1491 | . 152 1339 Core 337 | . 10 327 Absorbed by Shields . | . . . Ignored by Resistances 306 | . 44 262 Core Remaining (%) 98 | 100 96 . Volleys Fired 49 | 2 13 34 Largest 2 | 2 2 2 Hottest 89 | 60 60 89 Shots Fired 91 | 4 26 61 Gun 59 | 4 21 34 Cannon . | . . . Launcher 32 | . 5 27 Special . | . . . Kinetic 31 | 2 13 16 Thermal 18 | . . 18 Explosive 32 | . 5 27 Electromagnetic 10 | 2 8 . Robot Hit Streak 18 | 3 13 18 Robot Miss Streak 2 | . 2 1 Penetration Max . | . . . Secondary Targets . | . . . Shots Hit Robots 71 | 3 22 46 Core Hits 64 | 2 17 45 Critical Kills . | . . . Critical Parts Destroyed . | . . . Critical Strikes . | . . . Melee Attacks . | . . . Impact . | . . . Slashing . | . . . Piercing . | . . . Sneak Attacks . | . . . Combat Hostiles . | . . . Follow-up Attacks . | . . . Damage Inflicted 2951 | 39 728 2184 Guns 615 | 39 240 336 Cannons . | . . . Explosions 2336 | . 488 1848 Melee . | . . . Ramming . | . . . Kinetic 335 | 11 144 180 Thermal 504 | . 73 431 Explosive 1963 | . 415 1548 Electromagnetic 149 | 28 96 25 Impact . | . . . Slashing . | . . . Piercing . | . . . Highest Corruption 4 | . . 4 Average Corruption 4 | . . 4 Corruption Purged . | . . . Corruption Blocked . | . . . Overload Shots . | . . . Overflow Damage 131 | . 8 123 Projectiles . | . . . Explosions 131 | . 8 123 Melee . | . . . Knockbacks . | . . . Impact . | . . . Kinetic . | . . . Secondary . | . . . Self-Inflicted Damage 522 | . 63 459 Shots 18 | . 3 15 Rammed . | . . . Targets Rammed . | . . . Kicked . | . . . Crushed . | . . . Highest Temperature 115 | . 30 115 Average Temperature 35 | . 14 41 Received Heat Transfer 300 | . 48 252 Siege Activations . | . . . Robots Corrupted . | . . . Combat Hostiles . | . . . Parts Fried . | . . . Impact Corruptions . | . . . Robots Melted . | . . . Combat Hostiles . | . . . Parts Melted . | . . . Heat Transferred 607 | . 50 557 Parts Sabotaged . | . . . Parts Stolen . | . . . Parts Stripped . | . . . Power Chain Reactions . | . . . Alert | -11 -10 -9 ------- Run | Yrd Mat Mat Peak Influence 726 | 10 257 726 Initial 92 | . 5 92 Average 265 | . 140 347 Maximum Alert Level 3 | . 1 3 Low Security (%) 32 | 100 53 15 Level 1 39 | . 46 39 Level 2 27 | . . 42 Level 3 . | . . 1 Level 4 . | . . . Level 5 . | . . . High Security . | . . . Max Security . | . . . Squads Dispatched 2 | . . 2 Investigation 2 | . . 2 Extermination . | . . . Reinforcement . | . . . Assault . | . . . Garrison . | . . . Intercept . | . . . Searches Triggered . | . . . Construction Impeded . | . . . Haulers Reinforced . | . . . Active Scanning Responses . | . . . Cargo Convoy Interrupts . | . . . Stealth | -11 -10 -9 --------- Run | Yrd Mat Mat Distress Signals 3 | . 2 1 Communications Jammed . | . . . Distress Signals . | . . . Times Spotted 36 | . 9 27 Peak Tracking Total 7 | . 7 6 Tactical Retreats . | . . . Traps | -11 -10 -9 ------- Run | Yrd Mat Mat Traps Triggered 2 | . 1 1 Indirectly . | . . . Trap Hack Attempts . | . . . Triggered . | . . . Disarmed . | . . . Reprogrammed . | . . . Reused . | . . . Traps Extracted . | . . . Installed . | . . . Triggered . | . . . Machines | -11 -10 -9 ---------- Run | Yrd Mat Mat Machines Disabled 9 | . 2 7 Max in Single Turn 2 | . 1 2 Machines Repaired . | . . . Machines Dismantled . | . . . Machines Sabotaged . | . . . Overloaded Fab Kills . | . . . Hacking | -11 -10 -9 --------- Run | Yrd Mat Mat Machines Accessed 3 | . 1 2 Terminals 3 | . 1 2 Fabricators . | . . . Repair Stations . | . . . Recycling Units . | . . . Scanalyzers . | . . . Garrison Access . | . . . Total Hacks 10 | . 3 7 Successful 9 | . 3 6 Failed 1 | . . 1 Catastrophic . | . . . Database Lockouts . | . . . Manual . | . . . Terminals 10 | . 3 7 Fabricators . | . . . Repair Stations . | . . . Recycling Units . | . . . Scanalyzers . | . . . Garrison Access . | . . . Terminal Hacks 9 | . 3 6 Record 3 | . . 3 Prototype ID Bank 1 | . . 1 Emergency Access Points 1 | . . 1 Locate Traps 1 | . 1 . Dispatch Records 1 | . . 1 Registered Components 1 | . 1 . Zone Layout 1 | . 1 . Fabricator Hacks . | . . . Repair Station Hacks . | . . . Recycling Unit Hacks . | . . . Scanalyzer . | . . . Garrison Access Hacks . | . . . Unauthorized Hacks . | . . . Terminals . | . . . Fabricators . | . . . Repair Stations . | . . . Recycling Units . | . . . Scanalyzers . | . . . Garrison Access . | . . . Data Cores Recovered . | . . . Used . | . . . Hacking Detections 3 | . 1 2 Full Trace Events 2 | . 1 1 Feedback Events . | . . . Feedback Blocked . | . . . Robot Schematics Acquired . | . . . Robots Built . | . . . Authchips . | . . . Time . | . . . Total Robot Build Rating . | . . . Part Schematics Acquired . | . . . Parts Built . | . . . Authchips . | . . . Time . | . . . Total Part Build Rating . | . . . Parts Repaired . | . . . Time . | . . . Parts Recycled . | . . . Recycled Matter . | . . . Retrieved Matter . | . . . Retrieved Components . | . . . Parts Scanalyzed . | . . . Part Schematics Acquired . | . . . Parts Damaged . | . . . Bothacking | -11 -10 -9 ------------ Run | Yrd Mat Mat Used RIF Installer . | . . . Robots Hacked . | . . . Non-combat . | . . . Combat . | . . . Robot Hacks Applied . | . . . Relay Couplers Released . | . . . Fabnet Peak Effective % . | . . . Robots Rewired . | . . . Allies Hacked . | . . . Hacks Repelled . | . . . Allies | -11 -10 -9 -------- Run | Yrd Mat Mat Total Allies . | . . . Largest Group . | . . . Highest-Rated Group . | . . . Highest-Rated Ally . | . . . Total Orders . | . . . Ally Attacks . | . . . Total Damage . | . . . Kills . | . . . Allies Corrupted . | . . . Allies Melted . | . . . Intel | -11 -10 -9 ------- Run | Yrd Mat Mat Robot Analysis Total . | . . . Derelict Logs Recovered . | . . . Drone Launches . | . . . Drone Recoveries . | . . . Exploration | -11 -10 -9 ------------- Run | Yrd Mat Mat Turns Passed 881 | 58 252 571 Spaces Moved 551 | 48 143 360 Core 28 | 28 . . Treads . | . . . Legs 523 | 20 143 360 Wheels . | . . . Hover . | . . . Flight . | . . . Fastest Speed 50 | 50 120 120 Average Speed 116 | 82 120 120 Slowest Speed 120 | 120 120 120 Overloaded Moves . | . . . Propulsion Burnouts . | . . . Robots Hopped . | . . . Cave-ins Triggered 1 | . . 1 Exploration Rate (%) 22 | 3 26 38 Regions Visited 2 Branch Regions . Pre-discovered Areas . | . . . Known Exits Taken 1 | . 1 . Unknown Exits Taken 1 | 1 . . Scrap Searched . | . . . Spaces Dug . | . . . Terrain Destroyed 240 | . 34 206 Melee . | . . . Projectile . | . . . AOE 240 | . 34 206 Terrain Rammed . | . . . Walls Destroyed . | . . . Machines Disabled . | . . . Actions | -11 -10 -9 --------- Run | Yrd Mat Mat Total 704 | 62 200 442 Wait 46 | . 27 19 Move 549 | 47 142 360 Hop . | . . . Pick Up 22 | 7 7 8 Fast Attach 1 | 1 . . Attach 20 | 5 6 9 Detach 7 | . 5 2 Swap 3 | . . 3 Drop 7 | . . 7 Fire 49 | 2 13 34 Melee . | . . . Ram . | . . . Kick . | . . . Crush . | . . . Escape Stasis . | . . . Rewire . | . . . Trap . | . . . Miscellaneous . | . . . Route ------- -11/Scrapyard -10/Materials -9/Materials (discovered 1 exit: [*Mat]) History --------- Turn | Location | Event 3 | -11/Scrapyard | Discovered new exit (range 15) 59 | -11/Scrapyard | Entered Materials 299 | -10/Materials | Discovered new exit (range 7) 300 | -10/Materials | Build established: Mutant 308 | -10/Materials | Identified exit to Materials 311 | -10/Materials | Entered another Materials area 311 | -9/Materials | Evolved 2 slots: Propulsion x2 391 | -9/Materials | Discovered new exit (range 6) 878 | -9/Materials | Crushed by falling debris 878 | -9/Materials | Core integrity fell below 50% 881 | -9/Materials | Core integrity fell below 20% 882 | -9/Materials | Self-destructed Last Messages --------------- 00870_ Aluminum Leg broken. 00870_ Faulty integration triggers power surge. 00872_ G-47 Trooper destroyed. 00872_ G-34 Mercenary destroyed. 00872_ Destroyed Wheel. 00874_ R-06 Scavenger collects Imp. EM Shotgun. 00874_ R-06 Scavenger destroyed. 00878_ Neutrino Reactor explodes. 00878_ The unstable cave ceiling collapses. 00878_ Crushed by falling debris. [Achievement: Unlikely Earthworm] 00878_ Aluminum Leg destroyed. 00878_ Lgt. Ion Engine destroyed. 00878_ System corrupted by crushing effect (+1). 00878_ Broken Aluminum Leg destroyed. 00878_ System corrupted by crushing effect (+3). 00878_ Aluminum Leg destroyed. 00880_ Y-45 Defender destroyed. 00880_ Faulty Imp. EM Shotgun destroyed. 00880_ Destroyed Faulty Imp. EM Shotgun. Map ----- +----------------------------------------------------+ | ?????????????????????????????????????????????????? | | ?????????????????????????????????????????????????? | | ?????????????????????????????????????????????????? | | ?????????????????????????????????????????????????? | | ?????????????????????????????????????????????????? | | ?????????????????????????????????????????????????? | | ?????????????????????????????????????????????????? | | ?????????????????????????????????????????????????? | | ?????????????????????????????????????????????????? | | ?????????????????????????????????????????????????? | | ??????????????????????????????????????????? ???? | | ??????????????????????????????????????????# #? ? | | ????????????????????????????????????????? # # | | ????????????????????????????????????????? # # | | ????????????????????????????????????????? # | | ???????????????????#?????????#??????###### | | ???????????????????? ??????? #????? # ? | | ????????????????????? ?????? #???#??"" ?? | | ???????????????# ????#+??###/##### "R ### | | ???????????????# ??## ### # """ | | ??????????????## ## # # # " | | ??????????????# ![ # """ " | | ??????????????# ! % # "" " | | ??????????????+ # " # | | ??????????????# %= # =## # | | ??????????????# ! = @ [ #?????# * | | ??????????????###### ######## | | ???????????????????# ; | | ???????????????????## # %%! ####### #+ | | ????????????????????#?### * #?????# ! % | | ????????????????????????# ####?????# | | ????????????????????????# ####????????#+# * | | ????????????????????????## #???????????? #% | | ?????????????????????????#a#?????????? """ # | | ?????????????????????????# #?????????? """ [# | | ?????????????????????????# #???????????""" # | | ?????????????????????????? #???????????? # | | ?????????????????????????? #????????????########## | | ??????????????????????????t??????????????????????? | | ?????????????????????????? ??????????????????????? | | ?????????????????????????????????????????????????? | | ?????????????????????????????????????????????????? | | ?????????????????????????????????????????????????? | | ?????????????????????????????????????????????????? | | ?????????????????????????????????????????????????? | | ?????????????????????????????????????????????????? | | ?????????????????????????????????????????????????? | | ?????????????????????????????????????????????????? | | ?????????????????????????????????????????????????? | | ?????????????????????????????????????????????????? | +----------------------------------------------------+ Best States ------------- Heat Dissipation 39 Energy Generation 10 Energy Capacity 250 Matter Stores 300 Matter Capacity 300 Sight Range 16 Terrain Scan Density 10 Resistance: KI 20 Resistance: TH 20 Resistance: EX 20 Resistance: EM 20 Resistance: I 20 Resistance: S 20 Resistance: P 20 Evasion (%) 55 Offensive Hacking 10 Item Schematics ----------------- None Robot Schematics ------------------ None Fabricated ------------ Nothing Alien Tech Used ----------------- None Achievements -------------- Loot Pinata Unlikely Earthworm Challenges ------------ None Game ------ Seed PiercingBlastKatana Manual? 0 Play Time 00:18:11 Cumulative 4.0 hours Start 2024.04.11 @ 16:28:40 End 2024.04.11 @ 18:41:01 Sessions 3 Manual Loads 0 Difficulty Adventurer Special Mode None Game No. 4 Rogue 0 Adventurer 4 Explorer 0 Win Type - Total 0 Types 0/0/0/0/0/0/0/0/0 Lore% 2 Gallery% 6 Achievement% 7 Wizard Run 0 Options --------- Layout 0 ASCII 0 Keyboard 0 Movement Mouse Keybinds 0 Fullscreen 1 Font 20/SmallcapsGlow Map View 66x50 Zoom Use 0% Tactical HUD 1 Map Filters NONE Filters NONE Steam 1 RUN: b4bf0f3f-b6d4-4d98-b7d1-b75691f56ecd